fUSD/lending_fUSD_20241107
["ID","MTS","AMOUNT","RATE_DAILY","PERIOD"]
[341531744,1730962253342,-5789.43,0.0003177,4]
[341531745,1730962253352,-500.0,0.0003177,4]
[341531746,1730962253361,-1602.15,0.0003177,4]
[341531747,1730962253371,-984.08,0.0003177,4]
[341531748,1730962253381,-500.0,0.0003177,4]
[341531749,1730962253390,-500.0,0.0003177,4]
[341531750,1730962253400,-514.34,0.0003177,4]
[341531751,1730962253409,-2119.46,0.0003177,4]
[341531752,1730962253419,-481.13315303,0.0003177,4]
[341531753,1730962253428,-867.57,0.0003177,4]
[341531754,1730962253438,-2476.71,0.0003177,4]
[341531755,1730962253447,-500.0,0.0003177,4]
[341531756,1730962253457,-3122.99,0.0003177,4]
[341531757,1730962253467,-500.0,0.0003177,4]
[341531758,1730962253478,-737.97,0.0003177,4]
[341531759,1730962253488,-1593.62,0.0003177,4]
[341531760,1730962253497,-420.54882819,0.0003177,4]
[341531761,1730962253507,-500.0,0.0003177,4]
[341531762,1730962253517,-1745.66,0.0003177,4]
[341531763,1730962253527,-500.0,0.0003177,4]
[341531764,1730962253537,-756.88,0.0003177,4]
[341531765,1730962253547,-1697.69,0.0003177,4]
[341531766,1730962253557,-535.24326979,0.0003177,4]
[341531767,1730962253566,-500.0,0.0003177,4]
[341531768,1730962253576,-546.98327009,0.0003177,4]
[341531769,1730962253586,-649.23,0.0003177,4]
[341531770,1730962253596,-500.0,0.00031771,4]
[341531771,1730962253606,-655.12,0.00031771,4]
[341531772,1730962253616,-500.0,0.00031771,4]
[341531773,1730962253625,-500.0,0.00031771,4]
[341531774,1730962253635,-500.0,0.00031771,4]
[341531775,1730962253645,-587.46,0.00031771,4]
[341531776,1730962253654,-592.17,0.00031771,4]
[341531777,1730962253666,-500.0,0.00031771,4]
[341531778,1730962253676,-500.0,0.00031771,4]
[341531779,1730962253685,-500.0,0.00031771,4]
[341531780,1730962253694,-500.0,0.00031771,4]
[341531781,1730962253704,-588.94,0.00031771,4]
[341531782,1730962253714,-500.0,0.00031771,4]
[341531783,1730962253724,-241.91844924,0.00031771,4]
[341531784,1730962253739,-258.08155076,0.00031771,4]
[341531785,1730962253748,-500.0,0.00031771,4]
[341531786,1730962253758,-969.73,0.00031771,4]
[341531787,1730962253767,-601.04,0.00031771,4]
[341531788,1730962253777,-500.0,0.00031771,4]
[341531789,1730962253787,-566.01,0.00031771,4]
[341531790,1730962253796,-500.0,0.00031771,4]
[341531791,1730962253805,-500.0,0.00031771,4]
[341531792,1730962253815,-641.65,0.00031771,4]
[341531793,1730962253824,-500.0,0.00031771,4]
[341531794,1730962253834,-283.55147745,0.00031771,4]
[341531795,1730962253844,-500.0,0.00031771,4]
[341531796,1730962253854,-500.0,0.00031771,4]
[341531797,1730962253864,-776.25,0.00031771,4]
[341531798,1730962253874,-500.0,0.00031771,4]
[341531799,1730962253883,-263.5,0.00031771,4]
[341531800,1730962253893,-264.42858672,0.00031771,4]
[341531801,1730962253905,-235.57141328,0.00031771,4]
[341531802,1730962253915,-500.0,0.00031771,4]
[341531803,1730962253925,-500.0,0.00031771,4]
[341531804,1730962253934,-500.0,0.00031771,4]
[341531805,1730962253944,-618.93,0.00031771,4]
[341531806,1730962253954,-552.0010141,0.00031771,4]
[341531807,1730962253964,-500.0,0.00031771,4]
[341531808,1730962253977,-500.0,0.00031771,4]
[341531809,1730962253987,-500.0,0.00031771,4]
[341531810,1730962253997,-500.0,0.00031771,4]
[341531811,1730962254007,-500.0,0.00031771,4]
[341531812,1730962254016,-500.0,0.00031771,4]
[341531813,1730962254026,-619.96383399,0.00031771,4]
[341531814,1730962254036,-500.0,0.00031771,4]
[341531815,1730962254046,-28.29823534,0.00031771,4]
[341531816,1730962254058,-471.70176466,0.00031771,4]
[341531817,1730962254068,-500.0,0.00031771,4]
[341531818,1730962254077,-507.31,0.00031771,4]
[341531819,1730962254087,-500.0,0.00031771,4]
[341531820,1730962254097,-505.93123665,0.00031771,4]
[341531821,1730962254107,-500.0,0.00031771,4]
[341531822,1730962254117,-500.0,0.00031771,4]
[341531823,1730962254126,-500.0,0.00031771,4]
[341531824,1730962254136,-177.45740849,0.00031771,4]
[341531825,1730962254146,-1124.47,0.00031771,4]
[341531826,1730962254156,-500.0,0.00031771,4]
[341531827,1730962254165,-500.0,0.00031771,4]
[341531828,1730962254175,-500.0,0.00031771,4]
[341531829,1730962254186,-500.0,0.00031771,4]
[341531830,1730962254433,-809.63,0.00031771,4]
[341531831,1730962254443,-1137.42,0.00031771,4]
[341531832,1730962254452,-1096.88,0.00031771,4]
[341531833,1730962254463,-500.0,0.00031771,4]
[341531834,1730962254473,-501.48,0.00031771,4]
[341531835,1730962254483,-500.0,0.00031771,4]
[341531836,1730962254493,-500.0,0.00031771,4]
[341531837,1730962254502,-430.51904251,0.00031771,4]
[341531838,1730962254511,-500.0,0.00031771,4]
[341531839,1730962254521,-456.17,0.00031771,4]
[341531840,1730962254532,-500.0,0.00031771,4]
[341531841,1730962254541,-500.0,0.00031771,4]
[341531842,1730962254551,-248.59553805,0.00031771,4]
[341531843,1730962254561,-58.57892615,0.00031771,4]
[341531844,1730962255237,-500.0,0.00031473,2]
[341531845,1730962255247,-1116.21,0.00031495,4]
[341531846,1730962255256,-500.0,0.00031495,4]
[341531847,1730962255266,-2384.88,0.00031496,4]
[341531848,1730962255275,-500.0,0.00031496,4]
[341531849,1730962255285,-500.30004792,0.00031599,4]
[341531850,1730962255295,-473.40243918,0.00031769,4]
[341531851,1730962255307,-642.80756082,0.00031769,4]
[341531852,1730962255316,-2191.29901925,0.0003177,4]
[341531853,1730962255335,-500.0,0.00031495,4]
[341531854,1730962255345,-193.58098075,0.0003177,4]
[341531855,1730962255355,-500.0,0.0003177,4]
[341531856,1730962255365,-441.42107385,0.00031771,4]
[341531857,1730962255374,-694.21,0.00031771,4]
[341531858,1730962255384,-549.87,0.00031771,4]
[341531859,1730962255394,-351.53953563,0.00031771,4]
[341531860,1730962255404,-500.0,0.00031771,4]
[341531861,1730962255413,-500.0,0.00031771,4]
[341531862,1730962255423,-500.0,0.00031771,4]
[341531863,1730962255433,-182.99839896,0.00031771,4]
[341531864,1730962255443,-500.0,0.00031771,4]
[341531865,1730962255452,-500.0,0.00031771,4]
[341531866,1730962255463,-500.0,0.00031771,4]
[341531867,1730962255472,-500.0,0.00031771,4]
[341531868,1730962255483,-562.18001081,0.00031771,4]
[341531869,1730962255509,-121.91998919,0.00031771,4]
[341531870,1730962255519,-500.0,0.00031771,4]
[341531871,1730962255528,-404.83939308,0.00031771,4]
[341531872,1730962255538,-500.0,0.00031771,4]
[341531873,1730962255548,-500.0,0.00031771,4]
[341531874,1730962255558,-500.0,0.00031771,4]
[341531875,1730962255567,-828.87,0.00031771,4]
[341531876,1730962255577,-500.0,0.00031771,4]
[341531877,1730962255587,-75.61803302,0.00031771,4]
[341531878,1730962261902,300.0,0.00019725,2]
[341531880,1730962441942,300.0,0.00019725,2]
[341531882,1730962467899,158.12,0.00015342,2]
[341531884,1730962803084,500.0,0.0001726,2]
[341531885,1730962803456,500.0,0.0001726,2]
[341531886,1730962803841,389.457001,0.0001726,2]
[341531887,1730962803866,110.542999,0.0001726,2]
[341531888,1730962965050,25025.0,0.00019631,2]
[341531891,1730963230131,-172.45,0.00023071,2]
[341531892,1730963230152,-352.70461956,0.000248,2]
[341531893,1730963230172,-982.0,0.000249,2]
[341531894,1730963230192,-5362.82363458,0.000249,2]
[341531895,1730963251110,-196.64691873,0.000248,2]
[341531896,1730963349104,-390.76202903,0.00024832,2]
[341531897,1730963349124,-1716.30636542,0.000249,2]
[341531898,1730963349145,-500.0,0.00024932,2]
[341531899,1730963349169,-3033.49803703,0.00025956,2]
[341531900,1730963351116,-1983.2449158,0.00025956,2]
[341531901,1730963351141,-580.601354,0.00026851,2]
[341531902,1730963351166,-588.91,0.00026986,120]
[341531903,1730963351190,-7051.32686932,0.00026986,2]
[341531904,1730963358153,-17388.27780366,0.00026986,2]
[341531905,1730963358182,-150.99,0.00026999,2]
[341531906,1730963359102,-1489.28,0.00027007,2]
[341531907,1730963359123,-500.0,0.000274,7]
[341531908,1730963359144,-536.24,0.00028265,2]
[341531909,1730963359166,-416.291628,0.00028265,2]
[341531910,1730963359473,-255.728372,0.00028265,2]
[341531911,1730963359497,-405.99,0.00028688,2]
[341531912,1730963359518,-168.22,0.00028701,2]
[341531913,1730963359540,-536.24,0.00028719,2]
[341531914,1730963359561,-300.0,0.00028725,2]
[341531915,1730963359583,-164.21,0.00028771,2]
[341531916,1730963359604,-288.53,0.00028777,120]
[341531917,1730963359625,-250.0,0.00028782,2]
[341531918,1730963359647,-4619.21922739,0.00028793,2]
[341531919,1730963360473,23800.5644108,0.00026981,2]
[341531920,1730963385938,2923.405562,0.00019452,2]
[341531921,1730963385958,2440.594438,0.00019452,2]
[341531922,1730963402583,200.0,0.00023,2]
[341531923,1730963420426,150.0,0.00018123,2]
[341531930,1730963431751,-12401.9685338,0.00028782,2]
[341531931,1730963431760,-200.0,0.00028798,2]
[341531932,1730963431770,-280.59,0.00028818,2]
[341531933,1730963431779,-340.06,0.00028822,2]
[341531934,1730963431789,-200.0,0.00028827,2]
[341531935,1730963431799,-1884.78,0.00028847,2]
[341531936,1730963431808,-189.99,0.00028847,8]
[341531937,1730963431818,-200.0,0.00028848,7]
[341531938,1730963431828,-250.0,0.00028855,2]
[341531939,1730963431838,-1011.21,0.00028855,2]
[341531940,1730963431847,-159.61,0.00028916,2]
[341531941,1730963431856,-328.55004528,0.00028967,2]
[341531942,1730963431866,-393.78,0.00029002,120]
[341531943,1730963431875,-250.0,0.0002909,2]
[341531944,1730963431886,-219.56,0.00029093,30]
[341531945,1730963431895,-166.16,0.00029097,2]
[341531946,1730963431904,-271.11,0.00029098,2]
[341531947,1730963431914,-18696.78157971,0.00029098,2]
[341531948,1730963431978,-5203.21842029,0.00029098,2]
[341531949,1730963431987,-1000.0,0.00029113,2]
[341531950,1730963431997,-150.0,0.00029116,2]
[341531951,1730963432006,-536.24,0.00029173,2]
[341531952,1730963432019,-1489.28,0.00029271,2]
[341531953,1730963432028,-246.12,0.0002941,2]
[341531954,1730963432038,-246.12,0.00029426,2]
[341531955,1730963432047,-246.12,0.00029441,2]
[341531956,1730963432058,-246.12,0.00029457,2]
[341531957,1730963432069,-246.12,0.00029472,2]
[341531958,1730963432079,-246.12,0.00029488,2]
[341531959,1730963432090,-246.12,0.00029503,2]
[341531960,1730963432100,-246.12,0.00029519,2]
[341531961,1730963432110,-246.12,0.00029534,2]
[341531962,1730963432120,-246.12,0.00029549,2]
[341531963,1730963432130,-246.12,0.00029565,2]
[341531964,1730963432141,-246.12,0.0002958,2]
[341531965,1730963432150,-246.12,0.00029596,2]
[341531966,1730963432160,-200.0,0.000296,2]
[341531967,1730963432170,-246.12,0.00029611,2]
[341531968,1730963432180,-246.12,0.00029627,2]
[341531969,1730963432190,-536.24,0.00029627,2]
[341531970,1730963432199,-246.12,0.00029642,2]
[341531971,1730963432208,-246.12,0.00029658,2]
[341531972,1730963432220,-246.12,0.00029673,2]
[341531973,1730963432229,-246.12,0.00029689,2]
[341531974,1730963432240,-246.12,0.00029704,2]
[341531975,1730963432249,-608.9835,0.0003,2]
[341531976,1730963432259,-608.9835,0.0003,2]
[341531977,1730963432269,-2846.7246496,0.0003,120]
[341531978,1730963432279,-23151.42832476,0.0003,120]
[341531979,1730963432290,-182.46525,0.0003,2]
[341531980,1730963432300,-182.46525,0.0003,2]
[341531981,1730963432310,-536.24,0.00030082,2]
[341531982,1730963432319,-173.98,0.00030137,2]
[341531984,1730963432329,-340.06,0.00030263,2]
[341531985,1730963432338,-169.14,0.00030352,2]
[341531986,1730963432348,-536.24,0.00030536,2]
[341531987,1730963432358,-1253.0,0.00030549,2]
[341531988,1730963432367,-1989.0,0.00030549,2]
[341531989,1730963432377,-246.546,0.00030549,2]
[341531990,1730963432387,-560.332,0.00030549,2]
[341531991,1730963432396,-1795.0,0.00030549,2]
[341531992,1730963432408,-920.0,0.00030549,2]
[341531993,1730963432418,-2908.0,0.00030549,2]
[341531994,1730963432427,-1258.0,0.00030549,2]
[341531995,1730963432438,-813.0,0.00030549,2]
[341531996,1730963432449,-3378.0,0.00030549,2]
[341531997,1730963432459,-2017.9943,0.00030563,2]
[341531998,1730963432469,-1082.86381749,0.00030778,2]
[341531999,1730963432480,-1082.86381748,0.00030778,2]
[341532000,1730963432490,-160.623,0.0003086,2]
[341532001,1730963432502,-536.24,0.0003099,2]
[341532002,1730963432512,-3176.0,0.00031,5]
[341532003,1730963432523,-170.19309332,0.00031,5]
[341532004,1730963432533,-500.0,0.0003104,30]
[341532005,1730963432543,-500.0,0.0003104,30]
[341532006,1730963432553,-516.6483,0.00031198,2]
[341532007,1730963432564,-6609.6412755,0.00031293,15]
[341532008,1730963432574,-1000.0,0.00031295,2]
[341532009,1730963432584,-2500.0,0.00031295,2]
[341532010,1730963432594,-1000.0,0.00031298,2]
[341532011,1730963432603,-1047.50232156,0.00031298,2]
[341532012,1730963432616,-12312.45776546,0.00031298,2]
[341532013,1730963432636,-12221.36910697,0.00031298,2]
[341532014,1730963432647,-16895.81335076,0.00031298,2]
[341532015,1730963432669,-4820.79335525,0.00031298,2]
[341532016,1730963432679,-227.21374671,0.00031393,2]
[341532017,1730963432689,-328.09670175,0.00031393,2]
[341532018,1730963432699,-630.0657,0.00031395,2]
[341532019,1730963432708,-361.05526222,0.00031396,4]
[341532020,1730963432720,-536.24,0.00031444,2]
[341532021,1730963432730,-425.63374272,0.00031446,2]
[341532022,1730963432739,-200.3365397,0.0003146,2]
[341532023,1730963432750,-500.0,0.00031473,5]
[341532024,1730963432760,-201.53851425,0.00031485,2]
[341532025,1730963432770,-500.0,0.00031491,4]
[341532026,1730963432780,-1405.11,0.00031491,4]
[341532027,1730963432790,-500.0,0.00031492,4]
[341532028,1730963432800,-244.1433974,0.00031492,4]
[341532037,1730963437927,-217.85,0.00031288,10]
[341532038,1730963437936,-500.0,0.00031473,2]
[341532039,1730963437946,-500.0,0.00031491,2]
[341532040,1730963437955,-454.30637238,0.00031491,2]
[341532041,1730963437965,-500.0,0.00031491,2]
[341532042,1730963437976,-217.37613943,0.00031491,4]
[341532061,1730963439836,-1777.7292,0.00031198,2]
[341532062,1730963439888,-22377.7016,0.00031198,2]
[341532063,1730963439898,-1769.08386057,0.00031491,4]
[341532064,1730963439908,-500.0,0.00031491,2]
[341532065,1730963439918,-500.0,0.00031491,2]
[341532066,1730963439929,-500.0,0.00031491,2]
[341532067,1730963439938,-500.0,0.00031491,2]
[341532068,1730963439948,-500.0,0.00031491,2]
[341532069,1730963439958,-500.0,0.00031491,2]
[341532070,1730963439967,-500.0,0.00031491,2]
[341532071,1730963439977,-255.8566026,0.00031492,4]
[341532072,1730963439987,-3666.17,0.00031492,4]
[341532073,1730963440008,-500.0,0.00031492,4]
[341532074,1730963440021,-500.0,0.00031492,4]
[341532075,1730963440032,-643.97,0.00031492,4]
[341532076,1730963440041,-3545.07673954,0.00031492,4]
[341532077,1730963440168,-69.02326046,0.00031492,4]
[341532079,1730963440178,-1190.45374642,0.00031492,4]
[341532155,1730963442799,-356.9800003,0.00031492,4]
[341532158,1730963442863,-1757.39586941,0.00031492,4]
[341532159,1730963442906,-4094.26826313,0.00031492,4]
[341532160,1730963443069,-1938.94212074,0.00031492,4]
[341532161,1730963443078,-500.0,0.00031492,4]
[341532162,1730963443088,-393.283473,0.00031492,4]
[341532163,1730963443099,-500.0,0.00031492,4]
[341532164,1730963443108,-535.39,0.00031492,4]
[341532165,1730963443117,-1798.1,0.00031492,4]
[341532166,1730963443127,-685.07,0.00031492,4]
[341532167,1730963443136,-365.100743,0.00031492,4]
[341532168,1730963443145,-157.950212,0.00031492,4]
[341532169,1730963443154,-153.1758,0.00031492,4]
[341532170,1730963443163,-3041.72,0.00031492,4]
[341532171,1730963443172,-1431.95,0.00031492,4]
[341532172,1730963443181,-919.17,0.00031492,4]
[341532173,1730963443191,-2626.56,0.00031492,4]
[341532174,1730963443199,-500.0,0.00031492,4]
[341532175,1730963443208,-1096.3,0.00031492,4]
[341532176,1730963443218,-500.0,0.00031492,4]
[341532177,1730963443227,-1114.99,0.00031492,4]
[341532178,1730963443238,-973.56,0.00031492,4]
[341532179,1730963443247,-500.0,0.00031492,4]
[341532180,1730963443256,-1266.62,0.00031492,4]
[341532181,1730963443266,-590.56,0.00031492,4]
[341532182,1730963443276,-2338.55,0.00031492,4]
[341532183,1730963443285,-500.0,0.00031492,4]
[341532184,1730963443295,-1650.3,0.00031492,4]
[341532185,1730963443305,-3271.35,0.00031492,4]
[341532186,1730963443315,-578.04,0.00031492,4]
[341532187,1730963443325,-94.0850413,0.00031492,4]
[341532188,1730963443337,-2002.9949587,0.00031492,4]
[341532189,1730963443347,-1208.85,0.00031492,4]
[341532190,1730963443356,-3015.94,0.00031492,4]
[341532191,1730963443365,-500.0,0.00031492,4]
[341532192,1730963443374,-557.08,0.00031492,4]
[341532193,1730963443384,-500.0,0.00031492,4]
[341532194,1730963443393,-1083.56,0.00031492,4]
[341532195,1730963443402,-1498.18,0.00031492,4]
[341532196,1730963443412,-3533.74,0.00031492,4]
[341532197,1730963443421,-4602.47,0.00031492,4]
[341532198,1730963443430,-500.0,0.00031492,4]
[341532199,1730963443439,-951.14,0.00031492,4]
[341532200,1730963443449,-500.0,0.00031492,4]
[341532201,1730963443458,-500.0,0.00031492,4]
[341532202,1730963443467,-500.0,0.00031492,4]
[341532203,1730963443477,-3960.56,0.00031492,4]
[341532204,1730963443489,-981.52,0.00031492,4]
[341532205,1730963443499,-1745.31,0.00031492,4]
[341532206,1730963443509,-632.88,0.00031492,4]
[341532207,1730963443519,-2186.9,0.00031492,4]
[341532208,1730963443528,-552.51,0.00031492,4]
[341532209,1730963443538,-1136.41,0.00031492,4]
[341532210,1730963443547,-500.0,0.00031492,4]
[341532211,1730963443557,-675.45,0.00031492,4]
[341532213,1730963443567,-2245.89,0.00031492,4]
[341532215,1730963443576,-503.22,0.00031492,4]
[341532216,1730963443586,-500.0,0.00031492,4]
[341532217,1730963443596,-500.0,0.00031492,4]
[341532218,1730963443605,-687.97,0.00031492,4]
[341532219,1730963443614,-500.0,0.00031492,4]
[341532220,1730963443623,-500.0,0.00031493,4]
[341532221,1730963443632,-611.24,0.00031493,4]
[341532222,1730963443642,-500.0,0.00031493,4]
[341532223,1730963443653,-500.0,0.00031493,4]
[341532224,1730963443664,-500.0,0.00031493,4]
[341532225,1730963443675,-500.0,0.00031493,4]
[341532226,1730963443684,-500.0,0.00031493,4]
[341532227,1730963443694,-568.06,0.00031493,4]
[341532228,1730963443703,-816.26,0.00031493,4]
[341532229,1730963443712,-500.0,0.00031493,4]
[341532230,1730963443721,-500.0,0.00031493,4]
[341532231,1730963443730,-500.0,0.00031493,4]
[341532232,1730963443742,-590.96,0.00031493,4]
[341532233,1730963443752,-500.0,0.00031493,4]
[341532234,1730963443761,-500.0,0.00031493,4]
[341532235,1730963443770,-500.0,0.00031493,4]
[341532236,1730963443779,-843.99,0.00031493,4]
[341532237,1730963443789,-939.53,0.00031493,4]
[341532238,1730963443798,-500.0,0.00031493,4]
[341532239,1730963443807,-500.0,0.00031493,4]
[341532240,1730963443816,-541.04,0.00031493,4]
[341532241,1730963443825,-500.0,0.00031493,4]
[341532242,1730963443835,-562.67,0.00031493,4]
[341532243,1730963443844,-500.0,0.00031493,4]
[341532244,1730963443853,-500.0,0.00031493,4]
[341532245,1730963443862,-542.26,0.00031493,4]
[341532246,1730963443872,-500.0,0.00031493,4]
[341532247,1730963443881,-599.11,0.00031493,4]
[341532248,1730963443890,-500.0,0.00031493,4]
[341532249,1730963443900,-504.35566017,0.00031493,4]
[341532250,1730963443910,-500.0,0.00031493,4]
[341532251,1730963443919,-502.97243455,0.00031493,4]
[341532252,1730963443929,-500.0,0.00031493,4]
[341532253,1730963443939,-500.0,0.00031493,4]
[341532254,1730963443949,-965.29,0.00031493,4]
[341532255,1730963443960,-599.30609905,0.00031493,4]
[341532256,1730963443970,-614.15,0.00031493,4]
[341532257,1730963443979,-500.0,0.00031493,4]
[341532258,1730963443989,-1184.18,0.00031493,4]
[341532259,1730963443998,-775.56,0.00031493,4]
[341532260,1730963444007,-500.0,0.00031493,4]
[341532261,1730963444017,-500.0,0.00031493,4]
[341532262,1730963444027,-1897.96,0.00031493,4]
[341532263,1730963444037,-1449.58,0.00031493,4]
[341532264,1730963444046,-500.0,0.00031493,4]
[341532265,1730963444054,-500.0,0.00031493,4]
[341532266,1730963444064,-500.0,0.00031493,4]
[341532267,1730963444073,-500.0,0.00031493,4]
[341532268,1730963444083,-500.0,0.00031493,4]
[341532269,1730963444093,-756.98,0.00031493,4]
[341532270,1730963444102,-704.58,0.00031493,4]
[341532271,1730963444111,-500.0,0.00031493,4]
[341532272,1730963444121,-500.0,0.00031493,4]
[341532273,1730963444130,-500.0,0.00031493,4]
[341532274,1730963444139,-500.0,0.00031493,4]
[341532275,1730963444149,-500.0,0.00031493,4]
[341532276,1730963444158,-1483.07,0.00031493,4]
[341532277,1730963444167,-500.0,0.00031493,4]
[341532278,1730963444176,-500.0,0.00031493,4]
[341532279,1730963444186,-500.0,0.00031493,4]
[341532280,1730963444195,-500.0,0.00031493,4]
[341532281,1730963444205,-506.47361847,0.00031493,4]
[341532282,1730963444214,-500.0,0.00031493,4]
[341532283,1730963444223,-546.37,0.00031493,4]
[341532284,1730963444232,-534.65,0.00031493,4]
[341532285,1730963444242,-672.83,0.00031493,4]
[341532286,1730963444251,-500.0,0.00031493,4]
[341532287,1730963444261,-513.21,0.00031493,4]
[341532288,1730963444270,-500.0,0.00031493,4]
[341532289,1730963444279,-500.0,0.00031493,4]
[341532290,1730963444288,-500.0,0.00031493,4]
[341532291,1730963444298,-1038.3,0.00031493,4]
[341532292,1730963444307,-797.05,0.00031493,4]
[341532293,1730963444316,-500.0,0.00031493,4]
[341532294,1730963444326,-539.14474934,0.00031493,4]
[341532295,1730963444335,-500.0,0.00031493,4]
[341532296,1730963444345,-656.71,0.00031493,4]
[341532297,1730963444355,-500.0,0.00031493,4]
[341532298,1730963444364,-748.34,0.00031493,4]
[341532299,1730963444374,-500.0,0.00031493,4]
[341532300,1730963444384,-500.0,0.00031493,4]
[341532301,1730963444393,-868.12,0.00031493,4]
[341532302,1730963444404,-500.0,0.00031493,4]
[341532303,1730963444413,-500.0,0.00031493,4]
[341532304,1730963444423,-199.34211831,0.00031493,4]
[341532305,1730963444432,-500.0,0.00031493,4]
[341532306,1730963444442,-500.0,0.00031493,4]
[341532307,1730963444451,-500.0,0.00031493,4]
[341532308,1730963444461,-548.22,0.00031493,4]
[341532309,1730963444470,-500.0,0.00031493,4]
[341532310,1730963444479,-500.0,0.00031493,4]
[341532311,1730963444489,-500.0,0.00031493,4]
[341532312,1730963444499,-500.0,0.00031493,4]
[341532313,1730963444508,-500.0,0.00031493,4]
[341532314,1730963444517,-500.0,0.00031493,4]
[341532315,1730963444527,-500.0,0.00031493,4]
[341532316,1730963444537,-500.0,0.00031493,4]
[341532317,1730963444546,-500.0,0.00031493,4]
[341532318,1730963444555,-706.98,0.00031493,4]
[341532319,1730963444564,-500.0,0.00031493,4]
[341532320,1730963444574,-500.0,0.00031493,4]
[341532321,1730963444583,-500.0,0.00031493,4]
[341532322,1730963444593,-813.93,0.00031493,4]
[341532323,1730963444602,-503.63167573,0.00031493,4]
[341532324,1730963444611,-658.77,0.00031493,4]
[341532325,1730963444620,-500.0,0.00031493,4]
[341532326,1730963444630,-500.0,0.00031493,4]
[341532327,1730963444639,-500.0,0.00031493,4]
[341532328,1730963444649,-500.0,0.00031493,4]
[341532329,1730963444658,-500.0,0.00031493,4]
[341532330,1730963444667,-500.0,0.00031493,4]
[341532331,1730963444677,-503.2910406,0.00031493,4]
[341532332,1730963444686,-500.0,0.00031493,4]
[341532333,1730963444695,-785.35,0.00031493,4]
[341532334,1730963444704,-500.0,0.00031493,4]
[341532335,1730963444714,-500.0,0.00031493,4]
[341532336,1730963444723,-500.0,0.00031493,4]
[341532337,1730963444732,-500.0,0.00031493,4]
[341532338,1730963444742,-665.15,0.00031493,4]
[341532339,1730963444751,-500.0,0.00031493,4]
[341532340,1730963444761,-513.94,0.00031493,4]
[341532341,1730963444770,-500.0,0.00031493,4]
[341532342,1730963444779,-500.0,0.00031493,4]
[341532343,1730963444788,-500.0,0.00031493,4]
[341532344,1730963444797,-501.52,0.00031493,4]
[341532345,1730963444807,-500.0,0.00031493,4]
[341532346,1730963444816,-500.0,0.00031493,4]
[341532347,1730963444825,-500.0,0.00031493,4]
[341532348,1730963444834,-500.0,0.00031493,4]
[341532349,1730963444843,-500.0,0.00031493,4]
[341532350,1730963444852,-500.0,0.00031493,4]
[341532351,1730963444861,-500.0,0.00031493,4]
[341532352,1730963444870,-1101.05,0.00031493,4]
[341532353,1730963444879,-964.22,0.00031493,4]
[341532354,1730963444888,-500.0,0.00031493,4]
[341532355,1730963444897,-776.79,0.00031493,4]
[341532356,1730963444906,-500.0,0.00031493,4]
[341532357,1730963444915,-500.0,0.00031493,4]
[341532358,1730963444924,-500.0,0.00031493,4]
[341532359,1730963444933,-500.0,0.00031493,4]
[341532360,1730963444942,-500.0,0.00031493,4]
[341532361,1730963444951,-500.0,0.00031493,4]